bitfinex/quotes_ETHUSD_20251125
["timestamp","ask_amount","ask_price","bid_price","bid_amount"]
[1764048686435,1e-08,2927.7,2927.6,0.4723]
[1764048688011,1e-08,2927.7,2927.6,4.61366129]
[1764048688215,1e-08,2927.7,2927.6,5.07776129]
[1764048688410,1e-08,2927.7,2927.6,5.17776129]
[1764048688619,1e-08,2927.7,2927.6,5.21191896]
[1764048689541,1e-08,2927.7,2927.6,5.58326529]
[1764048690721,1e-08,2927.7,2927.6,5.61742296]
[1764048691961,1e-08,2927.7,2927.6,6.09372296]
[1764048692253,0.1848,2929.7,2928.5,0.1]
[1764048692471,0.6611,2929.7,2929.3,3.78608758]
[1764048692657,0.1848,2929.7,2929.4,0.216]
[1764048692968,0.4763,2929.6,2929.4,0.216]
[1764048693159,0.4063,2929.5,2929.4,0.216]
[1764048693537,0.8819,2929.5,2929.4,0.216]
[1764048693833,0.4763,2930.0,2929.4,0.6883]
[1764048694039,0.4763,2930.0,2929.5,3.88608758]
[1764048694262,0.002,2930.1,2929.7,0.4723]
[1764048694566,0.002,2930.1,2929.6,7.29097056]
[1764048694567,0.002,2930.1,2929.6,6.82687056]
[1764048694755,0.4783,2930.1,2929.6,6.82687056]
[1764048694960,0.4783,2930.1,2929.7,0.4723]
[1764048695490,0.002,2930.1,2929.7,1.341904]
[1764048695667,0.002,2930.1,2929.7,2.16749811]
[1764048696038,0.002,2930.1,2929.7,5.95358569]
[1764048696436,0.002,2930.1,2929.7,9.36690445]
[1764048697075,1e-08,2930.1,2930.0,0.5723]
[1764048697276,1e-08,2930.1,2930.0,5.76508169]
[1764048697695,1e-08,2930.1,2930.0,5.66508169]
[1764048697902,0.4763,2931.5,2930.1,0.72559411]
[1764048698056,0.4763,2931.9,2930.7,0.5723]
[1764048698263,0.4763,2931.8,2930.8,0.217]
[1764048698571,0.4763,2931.8,2930.9,10.23576375]
[1764048698973,0.4137,2931.0,2930.9,3.41192125]
[1764048699298,0.4763,2931.8,2930.9,10.23576375]
[1764048699455,0.4763,2931.8,2930.9,10.70806375]
[1764048699657,0.1848,2932.0,2930.9,10.70806375]
[1764048699866,0.4763,2931.9,2931.2,0.1]
[1764048700082,0.4763,2931.9,2931.3,0.217]
[1764048700681,0.4763,2931.9,2931.4,10.23401787]
[1764048701093,0.4137,2931.5,2931.4,3.41133929]
[1764048701466,0.8893,2931.5,2931.4,3.41133929]
[1764048702597,0.8893,2931.5,2931.3,3.62841118]
[1764048702793,0.4763,2931.4,2931.3,3.62841118]
[1764048702967,0.89,2931.4,2931.3,3.62841118]
[1764048705316,0.89,2931.4,2930.6,3.86]
[1764048705534,0.5985,2930.7,2930.6,3.41227052]
[1764048705886,1.0741,2930.7,2930.6,3.62927052]
[1764048706087,0.5985,2930.7,2930.6,3.62927052]
[1764048706325,0.4137,2930.7,2930.6,3.62927052]
[1764048706526,0.8893,2930.7,2930.6,3.62927052]
[1764048706694,0.4137,2930.7,2930.6,3.62927052]
[1764048706901,0.8893,2930.7,2930.6,3.62927052]
[1764048709623,0.4763,2931.3,2930.6,10.96023426]
[1764048709792,0.4763,2931.5,2930.8,0.4723]
[1764048709989,0.4968,2932.0,2930.8,0.4723]
[1764048710194,0.4968,2932.0,2930.9,0.03411921]
[1764048710497,0.4968,2932.0,2931.0,0.217]
[1764048710690,0.4968,2932.0,2931.1,0.03411688]
[1764048710895,0.4968,2932.0,2931.2,6.8231441]
[1764048711135,0.4968,2932.0,2931.2,10.23471615]
[1764048713040,0.3933,2931.3,2931.2,3.41157205]
[1764048713347,0.4968,2932.0,2931.2,10.23471615]
[1764048713655,0.4968,2932.0,2931.2,10.71961615]
[1764048714534,0.4968,2932.0,2931.3,0.51471455]
[1764048714844,0.4968,2932.0,2931.4,0.217]
[1764048715342,0.4968,2932.0,2931.5,6.82244584]
[1764048716115,0.3933,2931.6,2931.5,3.41122292]
[1764048716653,0.8645,2931.6,2931.5,3.41122292]
[1764048717724,0.4712,2932.0,2931.5,10.23366876]
[1764048718530,0.4186,2931.6,2931.5,3.41122292]
[1764048718939,0.8893,2931.6,2931.5,3.41122292]
[1764048719154,0.4186,2931.6,2931.5,3.41122292]
[1764048720258,0.4707,2931.9,2931.5,10.72346876]
[1764048720855,0.002,2932.1,2931.6,0.03411106]
[1764048721360,0.002,2932.1,2932.0,0.4898]
[1764048721532,0.002,2932.1,2932.0,4.1164412]
[1764048721923,0.002,2932.1,2932.0,4.5982412]
[1764048722148,0.002,2932.1,2932.0,4.6982412]
[1764048722533,0.002,2932.1,2932.0,4.2164412]
[1764048722750,0.002,2932.1,2932.0,4.2174412]
[1764048722944,0.002,2932.1,2932.0,3.6276412]
[1764048723143,0.002,2932.1,2932.0,4.1174412]
[1764048723448,1e-08,2932.4,2932.3,0.5872]
[1764048723795,1e-08,2932.4,2932.3,5.22859037]
[1764048724054,1e-08,2932.4,2932.3,5.71039037]
[1764048725525,1e-08,2932.4,2932.3,5.74449329]
[1764048726423,1e-08,2932.4,2932.3,5.96149329]
[1764048726624,1e-08,2932.4,2932.3,5.92739037]
[1764048726846,1e-08,2932.4,2932.3,5.96149329]
[1764048727045,1e-08,2932.4,2932.3,5.86149329]
[1764048727357,0.002,2933.5,2933.3,0.1]
[1764048727589,0.002,2933.5,2932.5,0.405504]
[1764048727590,0.002,2933.5,2933.4,4.11581343]
[1764048727869,0.002,2933.5,2933.4,5.82871154]
[1764048728170,0.002,2933.5,2933.4,5.07798201]
[1764048728322,0.002,2933.5,2933.4,5.55978201]
[1764048728957,0.002,2933.5,2933.4,5.45978201]
[1764048729158,0.002,2933.5,2933.4,5.55978201]
[1764048729362,0.002,2933.5,2933.4,4.97798201]
[1764048729853,0.002,2933.5,2933.4,5.07798201]
[1764048730160,0.002,2933.5,2933.4,5.55978201]
[1764048730774,0.002,2933.5,2933.4,5.07798201]
[1764048731272,0.002,2933.5,2933.4,4.97798201]
[1764048731483,0.002,2933.5,2933.4,5.55978201]
[1764048732406,0.002,2933.5,2933.4,4.97798201]
[1764048732906,0.4226,2933.5,2933.4,4.48818201]
[1764048733570,0.4226,2933.5,2933.4,3.62601343]
[1764048733767,0.8933,2933.5,2933.4,3.62601343]
[1764048736392,0.002,2933.5,2933.4,3.66010356]
[1764048736599,0.002,2933.5,2933.4,4.11581343]
[1764048737354,0.002,2933.5,2933.4,4.14990356]
[1764048737557,0.002,2933.5,2933.4,3.66010356]
[1764048737961,0.002,2933.5,2933.4,4.11581343]
[1764048738369,0.002,2933.5,2933.4,3.62601343]
[1764048738570,0.002,2933.5,2933.4,4.11581343]
[1764048738775,0.002,2933.5,2933.4,4.14990356]
[1764048739603,0.002,2933.5,2933.4,4.73170356]
[1764048740101,0.002,2934.0,2933.9,0.1]
[1764048740301,0.002,2934.0,2933.9,6.78018668]
[1764048740507,0.002,2934.0,2933.9,1.40849411]
[1764048740967,0.002,2934.0,2933.9,2.02617843]
[1764048741801,0.002,2934.0,2933.9,5.5711765]
[1764048742208,0.002,2934.0,2933.9,10.80878475]
[1764048742507,0.002,2934.5,2934.0,0.4659]
[1764048742801,0.002,2934.5,2934.1,0.217]
[1764048743266,0.002,2934.5,2934.1,0.6829]
[1764048743998,0.002,2934.5,2934.1,4.76150012]
[1764048744180,0.002,2934.5,2934.1,4.86150012]
[1764048744579,0.002,2934.5,2934.1,4.09110012]
[1764048744903,0.4659,2934.5,2934.1,3.62520012]
[1764048745290,0.002,2934.5,2934.1,4.19110012]
[1764048745680,0.47,2934.2,2934.1,3.62520012]
[1764048746402,0.8931,2934.2,2934.1,3.40820012]
[1764048751525,0.8931,2934.2,2934.0,3.62629618]
[1764048751726,0.4681,2934.1,2934.0,0.218]
[1764048752022,0.4681,2934.1,2934.0,3.62631629]
[1764048752395,0.4681,2934.1,2934.0,0.218]
[1764048752896,0.4681,2934.1,2934.0,3.62631629]
[1764048754513,0.0042,2934.1,2934.0,3.62631629]
[1764048754712,0.4681,2934.1,2934.0,3.62631629]
[1764048757126,0.0042,2934.1,2934.0,3.62631629]
[1764048757542,0.4681,2934.1,2934.0,3.62631629]
[1764048759442,0.4681,2934.1,2934.0,0.218]
[1764048759860,0.4681,2934.1,2934.0,3.62631629]
[1764048760200,0.4681,2934.1,2934.0,0.218]
[1764048760703,0.4681,2934.1,2934.0,3.62631629]
[1764048760999,0.4681,2934.1,2934.0,0.218]
[1764048761203,0.4681,2934.1,2934.0,0.001]
[1764048761857,1.19369411,2934.1,2934.0,0.001]
[1764048763060,0.4701,2934.1,2934.0,0.001]
[1764048765364,5.00939823,2934.1,2934.0,0.001]
[1764048766176,1.60119811,2934.1,2934.0,0.001]
[1764048766374,5.00939823,2934.1,2934.0,0.001]
[1764048769168,1.60119811,2934.1,2934.0,0.001]
[1764048770791,5.00939823,2934.1,2934.0,0.001]
[1764048770972,1.60119811,2934.1,2934.0,0.001]
[1764048772863,1.62969811,2934.1,2934.0,0.001]
[1764048773065,1.22419411,2934.1,2934.0,0.001]
[1764048773383,0.73179411,2934.1,2934.0,0.001]
[1764048773581,0.002,2934.1,2934.0,0.4672]
[1764048774891,0.002,2934.1,2934.0,3.87551629]
[1764048775095,0.002,2934.1,2934.0,4.33811629]
[1764048776775,0.002,2934.1,2934.0,3.87551629]
[1764048776978,0.002,2934.1,2934.0,4.35441629]
[1764048777588,0.002,2934.1,2934.0,3.40931629]
[1764048777766,0.4345,2934.1,2934.0,3.40931629]
[1764048777971,0.4345,2934.1,2934.0,3.62631629]
[1764048778690,0.4345,2934.1,2934.0,0.001]
[1764048778870,0.8927,2934.1,2934.0,0.001]
[1764048779063,0.92672069,2934.1,2934.0,0.001]
[1764048779294,0.8927,2934.1,2934.0,0.001]
[1764048779501,5.46601892,2934.1,2934.0,0.001]
[1764048780313,2.02379811,2934.1,2934.0,0.001]
[1764048780521,5.43199823,2934.1,2934.0,0.001]
[1764048781021,5.46601892,2934.1,2934.0,0.001]
[1764048781186,5.43199823,2934.1,2934.0,0.001]
[1764048781910,5.46601892,2934.1,2934.0,0.001]
[1764048782208,5.43199823,2934.1,2934.0,0.001]
[1764048785507,2.02379811,2934.1,2934.0,0.001]
[1764048785703,5.43199823,2934.1,2934.0,0.001]
[1764048786040,1.61829411,2934.1,2934.0,0.001]
[1764048789440,0.8927,2934.1,2934.0,0.001]
[1764048789641,0.002,2934.1,2934.0,0.4954]
[1764048789940,0.002,2934.1,2934.0,0.9743]
[1764048790139,0.002,2934.1,2934.0,0.4954]
[1764048790939,0.4345,2934.1,2934.0,0.001]
[1764048791099,0.8927,2934.1,2934.0,0.001]
[1764048792537,0.4345,2934.1,2934.0,0.001]
[1764048792938,0.8927,2934.1,2934.0,0.001]
[1764048793824,0.4345,2934.1,2934.0,0.001]
[1764048795025,0.002,2934.1,2934.0,0.4954]
[1764048795253,0.002,2934.1,2934.0,0.9743]
[1764048795454,0.002,2934.1,2934.0,4.38261629]
[1764048796867,0.002,2934.1,2934.0,3.90371629]
[1764048797065,0.002,2934.1,2934.0,4.38261629]
[1764048798731,0.4345,2934.1,2934.0,3.40931629]
[1764048799365,0.002,2934.1,2934.0,4.38261629]
[1764048806777,0.002,2934.1,2934.0,4.37597345]
[1764048807758,0.002,2934.1,2934.0,4.41005661]
[1764048808678,0.002,2934.1,2934.0,3.89707345]
[1764048809066,0.002,2934.1,2934.0,4.35437345]
[1764048809886,0.002,2934.1,2934.0,5.11405072]
[1764048810745,0.002,2934.1,2934.0,5.21405072]
[1764048810958,0.002,2934.3,2934.2,0.1]
[1764048811164,0.002,2934.3,2934.2,1.177504]
[1764048811371,0.002,2934.5,2934.4,0.1]
[1764048811576,0.002,2934.5,2934.4,0.555]
[1764048811777,0.002,2934.5,2934.4,1.0123]
[1764048812091,0.002,2934.5,2934.4,4.42015169]
[1764048812686,0.002,2934.5,2934.4,4.4542302]
[1764048813085,0.002,2934.5,2934.4,5.17982431]
[1764048813788,0.002,2934.5,2934.4,5.1457458]
[1764048814000,0.002,2934.5,2934.4,5.17982431]
[1764048814171,0.002,2934.5,2934.4,5.1457458]
[1764048815095,0.002,2934.5,2934.4,5.17982431]
[1764048817692,0.002,2934.5,2934.4,5.1457458]
[1764048817907,0.002,2934.5,2934.4,5.17982431]
[1764048818074,0.4868,2935.7,2934.7,0.1]
[1764048818273,0.4868,2935.7,2934.7,1.2293]
[1764048818470,0.4868,2935.7,2934.7,4.63680332]
[1764048819599,0.4868,2935.5,2934.7,4.53680332]
[1764048820483,0.4868,2935.7,2934.7,4.63680332]
[1764048820884,0.4868,2935.6,2934.7,4.63680332]
[1764048822701,0.4868,2935.6,2934.7,8.54279166]
[1764048824672,0.4868,2935.4,2934.7,4.07950332]
[1764048824872,0.4868,2935.1,2934.7,3.86250332]
[1764048825205,0.4868,2935.1,2934.7,4.07850332]
[1764048829030,0.4868,2935.1,2934.7,8.71008577]
[1764048830410,0.4669,2935.3,2934.7,9.19278577]
[1764048830792,0.4669,2935.3,2934.7,13.05278577]
[1764048831008,0.4669,2935.3,2934.7,12.57008577]
[1764048831307,0.4689,2935.1,2934.7,12.57008577]
[1764048833233,0.4689,2935.1,2934.7,7.93850332]
[1764048833418,0.4218,2934.8,2934.7,7.93850332]
[1764048834705,0.4218,2934.8,2934.7,7.26750332]
[1764048835018,0.8887,2934.8,2934.7,7.48350332]
[1764048835719,0.4218,2934.8,2934.7,7.48350332]
[1764048835902,0.8887,2934.8,2934.7,3.62350332]
[1764048836421,0.4218,2934.8,2934.7,3.62350332]
[1764048840426,0.8909,2934.8,2934.7,3.62350332]
[1764048841221,0.002,2934.8,2934.7,3.62350332]
[1764048841423,0.002,2934.8,2934.7,4.55090332]
[1764048841624,0.002,2934.8,2934.7,4.09830332]
[1764048841835,0.002,2934.8,2934.7,3.62350332]
[1764048842124,0.002,2934.8,2934.7,4.65090332]
[1764048845197,0.002,2934.8,2934.7,5.37649743]
[1764048846129,1e-08,2935.1,2935.0,0.980304]
[1764048846335,1e-08,2935.1,2935.0,9.55194634]
[1764048846508,1e-08,2935.1,2935.0,9.97047479]
[1764048846703,1e-08,2935.1,2935.0,13.37762981]
[1764048847493,1e-08,2935.1,2935.0,9.28213747]
[1764048849130,1e-08,2935.1,2935.0,8.51353747]
[1764048849434,0.86370001,2935.1,2935.0,3.40715502]
[1764048849740,0.86370001,2935.1,2935.0,3.62315502]
[1764048850638,0.86370001,2935.1,2934.7,10.22250996]
[1764048850842,0.86370001,2935.1,2934.7,3.40750332]
[1764048850843,0.675,2934.8,2934.7,3.40750332]
[1764048851042,0.675,2934.8,2934.7,3.62350332]
[1764048852118,0.1976,2935.0,2934.7,7.50580664]
[1764048852426,1e-08,2935.1,2934.9,4.38078834]
[1764048852600,1e-08,2935.1,2935.0,3.88195502]
[1764048852800,1e-08,2935.1,2935.0,4.33455502]
[1764048853428,1e-08,2935.1,2935.0,8.24054336]
[1764048853740,1e-08,2935.1,2935.0,8.34054336]
[1764048854141,1e-08,2935.1,2935.0,3.98195502]
[1764048854304,1e-08,2935.1,2935.0,3.91602657]
[1764048854504,1e-08,2935.1,2935.0,4.36862657]
[1764048855228,1e-08,2935.1,2935.0,4.46862657]
[1764048855435,1e-08,2935.1,2935.0,3.91602657]
[1764048855639,1e-08,2935.1,2935.0,7.78794336]
[1764048856538,1e-08,2935.1,2935.0,8.24054336]
[1764048857333,0.86370001,2935.1,2935.0,3.40715502]
[1764048858508,0.38130001,2935.1,2935.0,3.40715502]
[1764048859207,0.86370001,2935.1,2935.0,3.40715502]
[1764048859834,0.86370001,2935.1,2935.0,3.62315502]
[1764048860534,0.86370001,2935.1,2934.9,3.40726778]
[1764048860741,0.4671,2935.0,2934.9,3.62326778]
[1764048861861,4.37308834,2935.0,2934.6,0.001]
[1764048862015,0.3978,2934.7,2934.6,0.001]
[1764048862643,0.8601,2934.7,2934.6,0.001]
[1764048864171,0.3978,2934.7,2934.6,0.001]
[1764048864350,0.8601,2934.7,2934.6,0.217]
[1764048865634,0.2044,2934.7,2934.6,3.62461943]
[1764048870060,1e-08,2935.1,2934.6,10.91285829]
[1764048870360,0.4066,2934.7,2934.6,3.62461943]
[1764048871158,0.4617,2935.0,2934.6,10.43985829]
[1764048871859,0.4071,2934.7,2934.6,3.40861943]
[1764048872052,0.4071,2934.7,2934.6,3.62461943]
[1764048872346,0.8683,2934.7,2934.6,3.62461943]
[1764048873934,0.4066,2934.7,2934.6,3.62461943]
[1764048874130,0.8683,2934.7,2934.6,3.62461943]
[1764048883562,0.8683,2934.7,2934.6,0.001]
[1764048890475,0.8646,2934.7,2934.6,0.001]
[1764048892582,1e-08,2935.1,2934.6,0.4595]
[1764048892785,0.458,2935.0,2934.7,0.216]
[1764048893171,0.4108,2934.8,2934.7,0.216]
[1764048894562,0.4108,2934.8,2934.7,3.62350332]
[1764048897465,0.8683,2934.8,2934.7,3.62350332]
[1764048898898,0.8683,2934.8,2934.7,0.216]
[1764048899563,0.8683,2934.8,2934.6,0.001]
[1764048899800,0.4801,2934.7,2934.6,0.001]
[1764048899996,0.4801,2934.7,2934.6,3.40861943]
[1764048900803,0.0046,2934.7,2934.6,3.40861943]
[1764048900977,0.4801,2934.7,2934.6,3.40861943]
[1764048901298,0.4801,2934.7,2934.6,0.001]
[1764048901604,0.0046,2934.7,2934.6,0.001]
[1764048901816,0.40550401,2935.1,2934.6,0.001]
[1764048901817,0.4747,2935.0,2934.6,0.001]
[1764048902108,0.3943,2934.7,2934.6,0.001]
[1764048902595,0.8682,2934.7,2934.6,0.001]
[1764048903978,0.4739,2935.0,2934.6,0.468]
[1764048904377,0.3951,2934.7,2934.6,0.001]
[1764048904772,0.8682,2934.7,2934.6,0.001]
[1764048905174,0.4731,2935.0,2934.6,0.468]
[1764048905834,0.3958,2934.7,2934.6,0.001]
[1764048906992,0.4731,2935.0,2934.6,0.001]
[1764048909049,1e-08,2935.1,2934.9,4.23589203]
[1764048909188,1e-08,2935.1,2935.0,0.467]
[1764048909384,1e-08,2935.1,2934.7,0.216]
[1764048909639,1e-08,2935.1,2934.7,0.6894]
[1764048910813,1e-08,2935.1,2934.8,0.4734]
[1764048911128,1e-08,2935.1,2935.0,0.467]
[1764048911507,1e-08,2935.1,2935.0,0.9404]
[1764048912606,1e-08,2935.1,2935.0,4.34755502]
[1764048915006,1e-08,2935.1,2935.0,3.40715502]
[1764048915007,0.87370001,2935.1,2935.0,3.40715502]
[1764048918416,0.4795,2934.7,2934.6,3.62457267]
[1764048920898,0.4795,2934.7,2934.6,0.217]
[1764048921097,0.4795,2934.7,2934.6,3.62461943]
[1764048921613,0.004,2934.7,2934.6,3.62461943]
[1764048922125,0.4548,2935.0,2934.6,7.51583886]
[1764048922325,0.4548,2935.0,2934.7,0.4836]
[1764048922531,0.4548,2935.0,2934.6,7.03223886]
[1764048924446,0.4125,2934.7,2934.6,3.62461943]
[1764048926834,1e-08,2935.1,2934.6,7.03223886]
[1764048927040,0.4548,2935.0,2934.6,7.51583886]
[1764048927725,0.4125,2934.7,2934.6,3.62461943]
[1764048929913,1e-08,2935.1,2934.6,7.98333886]
[1764048930231,1e-08,2935.1,2934.7,0.4675]
[1764048930449,1e-08,2935.1,2934.6,7.51583886]
[1764048930450,0.4548,2935.0,2934.6,7.51583886]
[1764048930937,1e-08,2935.1,2934.6,7.98333886]
[1764048931113,1e-08,2935.1,2934.7,0.4675]
[1764048931518,1e-08,2935.1,2934.8,6.81477442]
[1764048931715,1e-08,2935.1,2935.0,0.4836]
[1764048931908,1e-08,2935.1,2935.0,1.1671]
[1764048933409,1e-08,2935.1,2935.0,4.57425502]
[1764048934618,0.41250001,2935.1,2935.0,3.40715502]
[1764048934826,0.41250001,2935.1,2935.0,3.62315502]
[1764048935523,0.86680001,2935.1,2935.0,0.216]
[1764048936740,0.86680001,2935.1,2934.6,3.40860733]
[1764048936948,0.6519,2934.7,2934.6,0.001]
[1764048937353,1.0622,2934.7,2934.6,3.40861943]
[1764048937912,0.4548,2935.0,2934.6,7.29983886]
[1764048938325,0.4125,2934.7,2934.6,3.40861943]
[1764048939148,0.4548,2935.0,2934.6,6.81623886]
[1764048939447,0.4125,2934.7,2934.6,3.40861943]
[1764048940350,1e-08,2935.1,2934.6,7.29983886]
[1764048940553,0.45480001,2935.1,2934.6,7.76733886]
[1764048943472,0.45480001,2935.1,2934.6,7.29983886]
[1764048943637,0.4125,2934.7,2934.6,3.40861943]
[1764048945271,1e-08,2935.1,2934.6,7.29983886]
[1764048945656,0.4125,2934.7,2934.6,3.40861943]
[1764048945970,0.4548,2935.0,2934.6,6.81623886]
[1764048947770,1e-08,2935.1,2934.6,11.1912997]
[1764048948274,0.45480001,2935.1,2934.6,11.1912997]
[1764048948467,1e-08,2935.1,2934.6,10.7237997]
[1764048948669,1e-08,2935.1,2934.7,0.4675]
[1764048948877,1e-08,2935.1,2934.8,3.40738721]
[1764048949052,1e-08,2935.1,2934.9,0.216]
[1764048949574,0.4125,2935.0,2934.9,0.216]
[1764048950138,0.90082069,2935.0,2934.9,0.216]
[1764048950562,0.8668,2935.0,2934.9,0.216]
[1764048951470,0.8668,2935.0,2934.9,3.62327111]
[1764048952973,0.8668,2935.0,2934.9,0.216]
[1764048955282,0.8668,2935.0,2934.9,3.40727111]
[1764048955887,0.4125,2935.0,2934.9,3.40727111]
[1764048956551,1e-08,2935.1,2934.9,3.89737111]
[1764048956949,0.4129,2935.0,2934.9,3.40727111]
[1764048957182,0.4129,2935.0,2934.8,3.40737834]
[1764048957683,0.0045,2934.9,2934.8,3.40737834]
[1764048957854,0.0045,2934.9,2934.6,3.62460259]
[1764048957855,0.4994,2934.9,2934.6,3.62460259]
[1764048958186,0.4949,2934.9,2934.6,7.03222202]
[1764048958351,0.49490001,2935.1,2934.6,7.03222202]
[1764048958884,1e-08,2935.1,2935.0,4.39766084]
[1764048959089,0.91771482,2936.9,2935.6,0.4901]
[1764048959289,0.35259185,2936.8,2935.3,0.1906]
[1764048959584,0.81347116,2936.7,2935.5,3.90756084]
[1764048959801,1.22049411,2936.7,2935.6,6.81291728]
[1764048959949,0.4949,2936.6,2935.7,3.90756084]
[1764048960152,0.4949,2936.6,2935.8,0.216]
[1764048962301,0.1822,2936.9,2936.5,0.4901]
[1764048962665,0.216,2937.3,2936.8,0.4901]
[1764048962972,0.81292819,2937.5,2936.8,0.4901]
[1764048963178,0.7109,2937.5,2936.8,0.4901]
[1764048963391,0.4949,2937.4,2936.8,0.4901]
[1764048964057,0.4949,2937.4,2936.9,6.80990158]
[1764048964254,0.4861,2936.9,2936.7,3.40515894]
[1764048964455,0.4163,2937.1,2936.6,3.6212804]
[1764048964896,0.4163,2937.1,2936.6,7.02657904]
[1764048967685,0.407504,2937.5,2936.6,7.47777904]
[1764048967890,0.4949,2937.3,2936.6,7.47777904]
[1764048968119,0.405504,2937.4,2936.6,7.02657904]
[1764048968416,0.03402069,2937.3,2936.6,7.02657904]
[1764048969117,0.4949,2937.3,2936.6,7.02657904]
[1764048969690,0.03402069,2937.2,2936.6,7.02657904]
[1764048970299,0.52892069,2937.2,2936.6,7.02657904]
[1764048971307,0.407504,2937.5,2936.6,7.02657904]
[1764048971509,0.4949,2937.4,2936.7,0.4512]
[1764048972918,0.4949,2937.4,2936.8,3.40506673]
[1764048973123,0.4076,2936.8,2936.6,0.216]
[1764048973310,0.7596148,2937.3,2936.6,3.62126461]
[1764048973620,0.5898,2936.7,2936.4,0.4949]
[1764048973819,0.1822,2936.7,2936.3,0.216]
[1764048974128,0.6771,2936.7,2936.3,0.216]
[1764048974487,0.4076,2936.4,2936.3,3.62154749]
[1764048974790,0.4076,2936.4,2936.0,0.216]
[1764048975125,0.4949,2936.3,2936.0,0.216]
[1764048975290,0.4076,2936.1,2935.3,0.6418]
[1764048975493,0.4949,2936.0,2935.4,7.02938148]
[1764048975914,0.1822,2935.9,2935.4,7.02938148]
[1764048976594,0.6771,2935.9,2935.4,7.02938148]
[1764048977121,0.4949,2935.8,2935.4,7.02938148]
[1764048979304,0.1822,2935.9,2935.4,7.48058148]
[1764048980227,0.6747,2935.9,2935.4,7.02938148]
[1764048980731,0.6747,2935.9,2935.4,7.49338148]
[1764048981029,0.1822,2935.9,2935.4,7.02938148]
[1764048981232,0.4925,2935.8,2935.4,7.02938148]
[1764048981707,0.1822,2935.9,2935.4,7.02938148]
[1764048981903,0.4925,2935.8,2935.4,7.02938148]
[1764048982105,0.1822,2935.9,2935.4,7.02938148]
[1764048982310,0.6747,2935.9,2935.4,7.02938148]
[1764048983209,0.1822,2935.9,2935.4,7.02938148]
[1764048983414,0.4925,2935.8,2935.4,7.02938148]
[1764048983800,0.4099,2935.5,2935.4,3.62269074]
[1764048983997,0.4099,2935.5,2935.4,0.216]
[1764048984203,0.9016,2935.5,2935.0,3.40711083]
[1764048984403,0.4917,2935.5,2935.0,3.40711083]
[1764048984620,0.4107,2935.1,2935.0,3.40711083]
[1764048985128,0.4909,2935.4,2935.0,3.40711083]
[1764048985320,0.4909,2935.4,2935.1,0.001]
[1764048985721,0.4115,2935.2,2935.1,0.001]
[1764048990133,0.9016,2935.2,2935.1,0.001]
[1764048990439,1.62719411,2935.2,2935.1,0.001]
[1764048991142,5.03411697,2935.2,2935.1,0.001]
[1764048991349,1.62719411,2935.2,2935.1,0.001]
[1764048993343,1.6612148,2935.2,2935.1,0.001]
[1764048993553,1.62719411,2935.2,2935.1,0.001]
[1764048994847,0.4115,2935.2,2935.1,0.001]
[1764048995348,0.216,2935.5,2935.1,0.4659]
[1764048995550,0.7085,2935.5,2935.1,3.87288821]
[1764048995712,0.4925,2935.5,2935.1,3.87288821]
[1764048996343,0.4925,2935.5,2935.1,0.4659]
[1764048996546,0.4099,2935.2,2935.1,0.001]
[1764048997052,0.4099,2935.2,2935.1,3.40803894]
[1764048997950,0.4099,2935.2,2935.1,0.001]
[1764048998965,0.4925,2935.5,2935.1,0.001]
[1764049000543,0.72559411,2935.8,2935.1,0.16]
[1764049000744,0.3982,2935.9,2935.4,0.4649]
[1764049001051,0.8907,2935.9,2935.4,0.4649]
[1764049001437,0.4925,2935.8,2935.4,0.4649]
[1764049002040,0.216,2936.2,2935.7,0.4649]
[1764049002268,1.34709811,2936.2,2935.8,0.4649]
[1764049002468,1.83959811,2936.2,2935.4,0.216]
[1764049002791,0.4925,2936.1,2935.5,3.40657468]
[1764049003293,0.4925,2936.1,2935.4,3.62268061]
[1764049003294,0.3969,2935.6,2935.4,3.62266284]
[1764049003435,0.3969,2935.5,2935.1,0.001]
[1764049003639,0.3969,2935.5,2935.2,3.40685719]
[1764049003640,0.03402069,2935.4,2935.2,3.40685719]
[1764049003944,0.4945,2935.8,2935.3,0.4649]
[1764049004139,0.4945,2935.8,2935.2,6.81378005]
[1764049004140,0.7105,2935.8,2935.4,0.4649]
[1764049004541,0.4925,2935.7,2935.4,0.4649]
[1764049004974,0.4925,2935.7,2935.3,3.40676428]
[1764049005887,0.218,2935.8,2935.3,3.87076428]
[1764049006059,0.002,2935.8,2935.4,0.464]
[1764049006795,0.002,2935.8,2935.4,3.87059924]
[1764049007492,0.002,2935.8,2935.4,7.27728998]
[1764049007788,0.002,2935.8,2935.4,3.87059924]
[1764049009693,0.002,2935.8,2935.4,7.27728998]
[1764049010068,0.002,2935.8,2935.7,0.4886]
[1764049011464,0.002,2935.8,2935.7,0.9633]
[1764049011667,0.002,2935.8,2935.7,4.3696426]
[1764049011864,0.002,2935.8,2935.7,3.8949426]
[1764049013908,0.002,2935.8,2935.7,4.3696426]
[1764049016523,0.002,2935.8,2935.7,3.8949426]
[1764049017101,0.002,2935.8,2935.7,4.3494426]
[1764049018896,0.002,2935.8,2935.7,3.8949426]
[1764049020431,0.002,2935.8,2935.4,0.216]
[1764049020432,0.4233,2935.8,2935.4,0.216]
[1764049020741,0.4698,2935.8,2935.5,3.40648101]
[1764049020947,0.426,2935.6,2935.5,3.40648101]
[1764049021246,0.426,2935.6,2935.4,3.40664085]
[1764049021395,0.8938,2935.5,2935.1,0.001]
[1764049021589,0.426,2935.2,2935.1,0.001]
[1764049022019,5.79013491,2935.2,2935.1,0.001]
[1764049022219,2.02449811,2935.2,2935.1,0.001]
[1764049023095,1.61899411,2935.2,2935.1,0.001]